fUSD/lending_fUSD_20250223
["ID","MTS","AMOUNT","RATE_DAILY","PERIOD"]
[354173234,1740328238432,-2158.35174899,0.00013212,2]
[354173236,1740328238441,-13175.7401513,0.0001337,2]
[354173238,1740328238451,-156.97,0.00013699,2]
[354173240,1740328238460,-650.0,0.00014,2]
[354173242,1740328238470,-727.35,0.00014556,2]
[354173244,1740328238480,-379.38,0.00016228,2]
[354173246,1740328238489,-1500.0,0.00016306,2]
[354173248,1740328238500,-250.0,0.00016405,2]
[354173250,1740328238509,-1000.0,0.00016543,2]
[354173252,1740328238519,-354.72,0.00016546,2]
[354173254,1740328238528,-16.95568888,0.00016579,2]
[354173256,1740328238541,-1200.0,0.00016579,2]
[354173259,1740328238552,-1113.81235035,0.00016579,2]
[354173266,1740328238609,-148.24196077,0.00016579,2]
[354173268,1740328238618,-500.0,0.00016588,2]
[354173270,1740328238627,-150.0,0.00016644,2]
[354173272,1740328238636,-150.0,0.00016644,2]
[354173274,1740328238645,-150.0,0.00016644,2]
[354173275,1740328238654,-232.16130402,0.00016644,2]
[354173277,1740328238663,-150.0,0.00016705,2]
[354173279,1740328238672,-436.55248042,0.0001675,2]
[354173281,1740328238683,-276.77,0.0001675,2]
[354173282,1740328238694,-964.44348,0.0001675,2]
[354173283,1740328238710,-715.01529334,0.0001675,2]
[354173284,1740328238718,-150.0,0.00016767,2]
[354173286,1740328238727,-150.0,0.00016798,2]
[354173287,1740328238736,-727.35,0.0001682,2]
[354173288,1740328238746,-57.63470666,0.00016829,2]
[354173289,1740328238757,-92.36529334,0.00016829,2]
[354173290,1740328238766,-150.0,0.0001689,2]
[354173291,1740328238775,-150.0,0.00016952,2]
[354173292,1740328238784,-150.0,0.00016952,2]
[354173293,1740328238793,-640.0,0.00016978,2]
[354173294,1740328238803,-1110.0,0.00016978,2]
[354173295,1740328238812,-200.0,0.00017,6]
[354173296,1740328238822,-150.0,0.00017014,2]
[354173297,1740328238831,-150.0,0.00017018,2]
[354173298,1740328238840,-492.54,0.00017025,2]
[354173299,1740328238850,-503.47,0.00017037,2]
[354173300,1740328238859,-499.55,0.00017051,2]
[354173301,1740328238868,-150.0,0.00017052,2]
[354173302,1740328238878,-501.0,0.00017071,2]
[354173303,1740328238887,-150.0,0.00017075,2]
[354173304,1740328238897,-500.0,0.000171,6]
[354173305,1740328238906,-150.0,0.00017106,2]
[354173306,1740328238915,-150.0,0.00017137,2]
[354173307,1740328238925,-150.0,0.00017199,2]
[354173308,1740328238934,-800.0,0.000172,6]
[354173309,1740328238944,-200.0,0.0001725,2]
[354173310,1740328238953,-150.0,0.0001726,2]
[354173311,1740328238963,-150.0,0.0001726,2]
[354173312,1740328238972,-3891.51844618,0.00017261,2]
[354173313,1740328238982,-1082.0,0.00017267,7]
[354173314,1740328238991,-1082.0,0.00017267,7]
[354173315,1740328239004,-1082.0,0.00017267,7]
[354173316,1740328239014,-1082.0,0.00017267,7]
[354173317,1740328239023,-1100.0,0.000173,6]
[354173318,1740328239032,-150.0,0.00017322,2]
[354173319,1740328239041,-1603.94,0.0001734,2]
[354173320,1740328239050,-158.127,0.0001734,2]
[354173321,1740328239064,-184.67,0.0001734,2]
[354173322,1740328239073,-150.0,0.00017384,2]
[354173323,1740328239082,-1300.0,0.000174,6]
[354173324,1740328239093,-150.0,0.00017414,2]
[354173325,1740328239103,-150.0,0.00017445,2]
[354173326,1740328239112,-2197.0,0.000175,3]
[354173327,1740328239121,-200.0,0.000175,6]
[354173328,1740328239131,-150.0,0.00017507,2]
[354173329,1740328239141,-876.71,0.00017534,2]
[354173330,1740328239150,-435.37,0.00017534,2]
[354173331,1740328239159,-1082.0,0.00017541,7]
[354173332,1740328239169,-1082.0,0.00017541,7]
[354173333,1740328239178,-150.0,0.00017568,2]
[354173334,1740328239188,-150.0,0.00017568,2]
[354173335,1740328239198,-200.0,0.000176,6]
[354173336,1740328239207,-150.0,0.0001763,2]
[354173337,1740328239216,-618.2877326,0.00017638,2]
[354173338,1740328239226,-150.0,0.00017692,2]
[354173339,1740328239235,-200.0,0.000177,6]
[354173340,1740328239244,-150.0,0.00017723,2]
[354173341,1740328239252,-150.0,0.00017753,2]
[354173342,1740328239262,-266.2,0.00017798,2]
[354173343,1740328239271,-200.0,0.000178,6]
[354173344,1740328239282,-150.0,0.00017815,2]
[354173345,1740328239291,-1082.0,0.00017815,7]
[354173346,1740328239300,-1082.0,0.00017815,7]
[354173347,1740328239309,-150.0,0.00017877,2]
[354173348,1740328239319,-150.0,0.00017877,2]
[354173349,1740328239328,-800.0,0.000179,6]
[354173350,1740328239337,-431.64767291,0.00017914,2]
[354173351,1740328239346,-200.075077,0.00017934,2]
[354173352,1740328239355,-150.0,0.00017938,2]
[354173353,1740328239364,-150.0,0.00018,2]
[354173354,1740328239374,-150.0,0.00018031,2]
[354173355,1740328239383,-4000.0,0.00018048,3]
[354173356,1740328239392,-150.0,0.00018062,2]
[354173357,1740328239402,-5667.13422131,0.00018072,2]
[354173358,1740328239411,-428.713,0.00018072,2]
[354173359,1740328239420,-189.95642233,0.0001808,2]
[354173360,1740328239430,-201.159,0.0001808,2]
[354173361,1740328239439,-2643.1379,0.0001808,2]
[354173362,1740328239450,-163.39509004,0.0001808,2]
[354173363,1740328239459,-200.0,0.00018082,2]
[354173364,1740328239469,-1082.0,0.00018089,7]
[354173365,1740328239478,-1082.0,0.00018089,7]
[354173366,1740328239487,-10424.17037558,0.00018099,2]
[354173367,1740328239497,-1645.0,0.000181,2]
[354173368,1740328239506,-517.99644853,0.00018108,2]
[354173369,1740328239522,-1019.45160052,0.00018108,2]
[354173370,1740328239535,-1077.18992899,0.00018108,2]
[354173371,1740328239548,-3052.49624326,0.00018108,2]
[354173372,1740328239557,-1322.16958,0.0001812,2]
[354173373,1740328239567,-150.0,0.00018123,2]
[354173374,1740328239577,-1740.96644721,0.00018144,2]
[354173379,1740328240290,-201.82547212,0.00018144,2]
[354173380,1740328240300,-312.75525848,0.00018144,2]
[354173381,1740328240309,-433.1487294,0.00018144,2]
[354173382,1740328240320,-7066.8512706,0.00018144,2]
[354173383,1740328240329,-1465.4945,0.00018144,2]
[354173384,1740328240339,-5667.1342213,0.00018145,2]
[354173385,1740328240348,-5552.46,0.00018169,2]
[354173386,1740328240358,-3305.23775929,0.0001817,21]
[354173387,1740328240470,-500.0,0.00018171,2]
[354173388,1740328240479,-500.0,0.00018171,2]
[354173389,1740328240489,-500.0,0.00018171,2]
[354173390,1740328240498,-500.0,0.00018171,2]
[354173391,1740328240507,-500.0,0.00018171,2]
[354173392,1740328240516,-500.0,0.00018171,2]
[354173393,1740328240525,-500.0,0.00018171,2]
[354173394,1740328240534,-500.0,0.00018171,2]
[354173395,1740328240544,-500.0,0.00018171,2]
[354173396,1740328240553,-500.0,0.00018171,2]
[354173397,1740328240562,-500.0,0.00018171,2]
[354173398,1740328240572,-500.0,0.00018172,2]
[354173399,1740328240581,-500.0,0.00018172,2]
[354173400,1740328240590,-500.0,0.00018172,2]
[354173401,1740328240599,-500.0,0.00018172,2]
[354173402,1740328240608,-500.0,0.00018172,2]
[354173403,1740328240617,-500.0,0.00018172,2]
[354173404,1740328240626,-500.0,0.00018172,2]
[354173405,1740328240635,-500.0,0.00018172,2]
[354173406,1740328240644,-500.0,0.00018172,2]
[354173407,1740328240654,-500.0,0.00018172,2]
[354173408,1740328240662,-500.0,0.00018172,2]
[354173409,1740328240671,-500.0,0.00018172,2]
[354173410,1740328240680,-500.0,0.00018172,2]
[354173411,1740328240689,-500.0,0.00018172,2]
[354173412,1740328240698,-500.0,0.00018172,2]
[354173413,1740328240707,-500.0,0.00018172,2]
[354173414,1740328240717,-500.0,0.00018172,2]
[354173415,1740328240725,-500.0,0.00018172,2]
[354173416,1740328240734,-500.0,0.00018172,2]
[354173417,1740328240743,-500.0,0.00018172,2]
[354173418,1740328240752,-500.0,0.00018172,2]
[354173419,1740328240761,-500.0,0.00018172,2]
[354173420,1740328240772,-500.0,0.00018172,2]
[354173421,1740328240781,-500.0,0.00018172,2]
[354173422,1740328240790,-500.0,0.00018172,2]
[354173423,1740328240799,-500.0,0.00018172,2]
[354173424,1740328240808,-500.0,0.00018172,2]
[354173425,1740328240817,-500.0,0.00018172,2]
[354173427,1740328240826,-500.0,0.00018172,2]
[354173429,1740328240834,-500.0,0.00018172,2]
[354173430,1740328240844,-500.0,0.00018172,2]
[354173432,1740328240854,-500.0,0.00018172,2]
[354173434,1740328240863,-500.0,0.00018172,2]
[354173436,1740328240872,-500.0,0.00018172,2]
[354173437,1740328240881,-500.0,0.00018172,2]
[354173438,1740328240890,-500.0,0.00018172,2]
[354173439,1740328240899,-500.0,0.00018172,2]
[354173440,1740328240908,-500.0,0.00018172,2]
[354173441,1740328240917,-500.0,0.00018172,2]
[354173442,1740328240926,-500.0,0.00018172,2]
[354173443,1740328240935,-500.0,0.00018172,2]
[354173444,1740328240944,-500.0,0.00018172,2]
[354173445,1740328240953,-500.0,0.00018172,2]
[354173446,1740328240962,-500.0,0.00018172,2]
[354173447,1740328240972,-923.0,0.00018172,2]
[354173448,1740328240981,-500.0,0.00018172,2]
[354173449,1740328240990,-500.0,0.00018172,2]
[354173450,1740328241000,-500.0,0.00018172,2]
[354173451,1740328241009,-500.0,0.00018172,2]
[354173452,1740328241018,-500.0,0.00018172,2]
[354173453,1740328241026,-500.0,0.00018172,2]
[354173454,1740328241035,-500.0,0.00018172,2]
[354173455,1740328241045,-500.0,0.00018172,2]
[354173456,1740328241057,-500.0,0.00018172,2]
[354173457,1740328241066,-500.0,0.00018172,2]
[354173458,1740328241075,-500.0,0.00018172,2]
[354173459,1740328241084,-500.0,0.00018172,2]
[354173460,1740328241094,-500.0,0.00018172,2]
[354173461,1740328241104,-500.0,0.00018172,2]
[354173462,1740328241113,-500.0,0.00018172,2]
[354173463,1740328241123,-500.0,0.00018172,2]
[354173464,1740328241133,-500.0,0.00018172,2]
[354173465,1740328241142,-500.0,0.00018172,2]
[354173466,1740328241152,-500.0,0.00018172,2]
[354173467,1740328241161,-500.0,0.00018172,2]
[354173468,1740328241170,-500.0,0.00018172,2]
[354173469,1740328241179,-500.0,0.00018172,2]
[354173470,1740328241188,-500.0,0.00018172,2]
[354173471,1740328241198,-500.0,0.00018172,2]
[354173472,1740328241207,-500.0,0.00018172,2]
[354173473,1740328241217,-500.0,0.00018172,2]
[354173474,1740328241226,-500.0,0.00018172,2]
[354173475,1740328241235,-500.0,0.00018172,2]
[354173476,1740328241245,-500.0,0.00018172,2]
[354173477,1740328241254,-500.0,0.00018172,2]
[354173478,1740328241263,-500.0,0.00018172,2]
[354173479,1740328241272,-500.0,0.00018172,2]
[354173480,1740328241281,-500.0,0.00018172,2]
[354173481,1740328241291,-500.0,0.00018172,2]
[354173482,1740328241300,-500.0,0.00018172,2]
[354173483,1740328241309,-500.0,0.00018172,2]
[354173484,1740328241317,-500.0,0.00018172,2]
[354173485,1740328241326,-500.0,0.00018172,2]
[354173486,1740328241335,-500.0,0.00018172,2]
[354173487,1740328241344,-500.0,0.00018172,2]
[354173488,1740328241353,-500.0,0.00018172,2]
[354173489,1740328241362,-500.0,0.00018172,2]
[354173490,1740328241371,-500.0,0.00018172,2]
[354173491,1740328241380,-500.0,0.00018172,2]
[354173492,1740328241389,-500.0,0.00018172,2]
[354173493,1740328241398,-500.0,0.00018172,2]
[354173494,1740328241406,-500.0,0.00018172,2]
[354173495,1740328241416,-500.0,0.00018172,2]
[354173496,1740328241425,-500.0,0.00018172,2]
[354173497,1740328241434,-500.0,0.00018172,2]
[354173498,1740328241443,-500.0,0.00018172,2]
[354173499,1740328241452,-500.0,0.00018172,2]
[354173500,1740328241461,-518.0,0.00018172,2]
[354173501,1740328241470,-500.0,0.00018172,2]
[354173502,1740328241479,-500.0,0.00018172,2]
[354173503,1740328241487,-500.0,0.00018172,2]
[354173504,1740328241496,-500.0,0.00018172,2]
[354173505,1740328241505,-500.0,0.00018172,2]
[354173506,1740328241514,-500.0,0.00018172,2]
[354173507,1740328241523,-500.0,0.00018172,2]
[354173508,1740328241531,-500.0,0.00018172,2]
[354173509,1740328241540,-500.0,0.00018172,2]
[354173510,1740328241549,-500.0,0.00018172,2]
[354173511,1740328241558,-500.0,0.00018172,2]
[354173512,1740328241567,-500.0,0.00018172,2]
[354173513,1740328241576,-500.0,0.00018172,2]
[354173514,1740328241585,-500.0,0.00018172,2]
[354173515,1740328241594,-500.0,0.00018172,2]
[354173516,1740328241603,-500.0,0.00018172,2]
[354173517,1740328241612,-500.0,0.00018172,2]
[354173518,1740328241621,-841.73662174,0.00018172,2]
[354173519,1740328241630,-1942.7919193,0.00018172,2]
[354173520,1740328241639,-500.0,0.00018178,2]
[354173521,1740328241649,-500.0,0.00018178,2]
[354173522,1740328241658,-500.0,0.00018178,2]
[354173523,1740328241667,-500.0,0.00018178,2]
[354173524,1740328241676,-500.0,0.00018178,2]
[354173525,1740328241685,-500.0,0.00018178,2]
[354173526,1740328241694,-500.0,0.00018178,2]
[354173527,1740328241703,-500.0,0.00018178,2]
[354173528,1740328241712,-500.0,0.00018178,2]
[354173529,1740328241721,-500.0,0.00018179,2]
[354173530,1740328241730,-170.276671,0.00018179,2]
[354173531,1740328241739,-500.0,0.00018179,2]
[354173532,1740328241748,-500.0,0.00018179,2]
[354173533,1740328241757,-500.0,0.00018179,2]
[354173534,1740328241766,-500.0,0.00018179,2]
[354173535,1740328241775,-212.725818,0.00018179,2]
[354173536,1740328241784,-500.0,0.00018179,2]
[354173537,1740328241793,-810.74,0.00018179,2]
[354173538,1740328241802,-500.0,0.00018179,2]
[354173539,1740328241811,-500.0,0.00018179,2]
[354173540,1740328241820,-500.0,0.00018179,2]
[354173541,1740328241829,-500.0,0.00018179,2]
[354173542,1740328241838,-500.0,0.00018179,2]
[354173543,1740328241847,-500.0,0.00018179,2]
[354173544,1740328241856,-500.0,0.00018179,2]
[354173545,1740328241865,-500.0,0.00018179,2]
[354173546,1740328241875,-500.0,0.00018179,2]
[354173547,1740328241884,-500.0,0.00018179,2]
[354173548,1740328241893,-500.0,0.00018179,2]
[354173549,1740328241902,-581.44,0.00018179,2]
[354173550,1740328241911,-500.0,0.00018179,2]
[354173551,1740328241920,-500.0,0.00018179,2]
[354173552,1740328241929,-500.0,0.00018179,2]
[354173553,1740328241938,-500.0,0.00018179,2]
[354173554,1740328241947,-500.0,0.00018179,2]
[354173555,1740328241955,-514.44,0.00018179,2]
[354173556,1740328241964,-551.91,0.00018179,2]
[354173557,1740328242068,-500.0,0.00018179,2]
[354173558,1740328242078,-500.0,0.00018179,2]
[354173559,1740328242087,-500.0,0.00018179,2]
[354173560,1740328242097,-500.0,0.00018179,2]
[354173561,1740328242107,-500.0,0.00018179,2]
[354173562,1740328242119,-500.0,0.00018179,2]
[354173563,1740328242128,-500.0,0.00018179,2]
[354173564,1740328242139,-500.0,0.00018179,2]
[354173565,1740328242148,-701.09,0.00018179,2]
[354173566,1740328242157,-500.0,0.00018179,2]
[354173567,1740328242167,-500.0,0.00018179,2]
[354173568,1740328242177,-500.0,0.00018179,2]
[354173569,1740328242187,-500.0,0.00018179,2]
[354173570,1740328242196,-6183.22,0.00018179,2]
[354173571,1740328242206,-500.0,0.00018179,2]
[354173572,1740328242216,-500.0,0.00018179,2]
[354173573,1740328242225,-500.0,0.00018179,2]
[354173574,1740328242235,-500.0,0.00018179,2]
[354173575,1740328242244,-500.0,0.00018179,2]
[354173576,1740328242253,-500.0,0.00018179,2]
[354173577,1740328242264,-500.0,0.00018179,2]
[354173578,1740328242274,-865.26,0.00018179,2]
[354173579,1740328242283,-541.75,0.00018179,2]
[354173580,1740328242293,-500.0,0.00018179,2]
[354173581,1740328242302,-500.0,0.00018179,2]
[354173582,1740328242311,-503.74222016,0.00018179,2]
[354173583,1740328242320,-500.0,0.00018179,2]
[354173584,1740328242329,-500.0,0.00018179,2]
[354173585,1740328242338,-500.0,0.00018179,2]
[354173586,1740328242347,-500.0,0.00018179,2]
[354173587,1740328242356,-500.0,0.00018179,2]
[354173588,1740328242366,-1142.8,0.00018179,2]
[354173589,1740328242375,-923.23,0.00018179,2]
[354173590,1740328242384,-500.0,0.00018179,2]
[354173591,1740328242393,-500.0,0.00018179,2]
[354173592,1740328242403,-500.0,0.00018179,2]
[354173593,1740328242413,-500.0,0.00018179,2]
[354173594,1740328242422,-500.0,0.00018179,2]
[354173595,1740328242431,-500.0,0.00018179,2]
[354173596,1740328242441,-500.0,0.00018179,2]
[354173597,1740328242451,-500.0,0.00018179,2]
[354173598,1740328242461,-500.0,0.00018179,2]
[354173599,1740328242471,-500.0,0.00018179,2]
[354173600,1740328242481,-500.0,0.00018179,2]
[354173601,1740328242490,-500.0,0.00018179,2]
[354173602,1740328242500,-500.0,0.00018179,2]
[354173603,1740328242509,-500.0,0.00018179,2]
[354173604,1740328242518,-500.0,0.00018179,2]
[354173605,1740328242528,-500.0,0.00018179,2]
[354173606,1740328242537,-500.0,0.00018179,2]
[354173607,1740328242547,-515.12,0.00018179,2]
[354173608,1740328242556,-500.0,0.00018179,2]
[354173609,1740328242565,-500.07,0.0001818,2]
[354173610,1740328242574,-500.0,0.0001818,2]
[354173611,1740328242583,-500.0,0.0001818,2]
[354173612,1740328242592,-500.0,0.0001818,2]
[354173613,1740328242601,-500.0,0.0001818,2]
[354173614,1740328242610,-500.0,0.0001818,2]
[354173615,1740328242619,-500.0,0.0001818,2]
[354173616,1740328242628,-500.0,0.0001818,2]
[354173617,1740328242638,-500.0,0.0001818,2]
[354173618,1740328242647,-500.0,0.0001818,2]
[354173619,1740328242657,-500.0,0.0001818,2]
[354173620,1740328242666,-500.0,0.0001818,2]
[354173621,1740328242675,-500.0,0.0001818,2]
[354173622,1740328242684,-500.0,0.0001818,2]
[354173623,1740328242694,-500.0,0.0001818,2]
[354173624,1740328242703,-500.0,0.0001818,2]
[354173625,1740328242712,-500.0,0.0001818,2]
[354173626,1740328242721,-500.0,0.0001818,2]
[354173627,1740328242731,-500.0,0.0001818,2]
[354173628,1740328242740,-500.0,0.0001818,2]
[354173629,1740328242749,-500.0,0.0001818,2]
[354173630,1740328242759,-500.0,0.0001818,2]
[354173631,1740328242768,-500.0,0.0001818,2]
[354173632,1740328242777,-500.0,0.0001818,2]
[354173633,1740328242787,-500.0,0.0001818,2]
[354173634,1740328242796,-500.0,0.0001818,2]
[354173635,1740328242806,-500.0,0.0001818,2]
[354173636,1740328242816,-500.0,0.0001818,2]
[354173637,1740328242826,-500.0,0.0001818,2]
[354173638,1740328242836,-500.0,0.0001818,2]
[354173639,1740328242845,-500.0,0.0001818,2]
[354173640,1740328242855,-500.0,0.0001818,2]
[354173641,1740328242864,-500.0,0.0001818,2]
[354173642,1740328242873,-500.0,0.0001818,2]
[354173643,1740328242882,-500.0,0.0001818,2]
[354173644,1740328242891,-500.0,0.0001818,2]
[354173645,1740328242901,-500.0,0.0001818,2]
[354173646,1740328242910,-500.0,0.0001818,2]
[354173647,1740328242920,-500.0,0.0001818,2]
[354173648,1740328242929,-500.0,0.0001818,2]
[354173649,1740328242938,-500.0,0.0001818,2]
[354173651,1740328242948,-500.0,0.0001818,2]
[354173652,1740328242958,-500.0,0.0001818,2]
[354173654,1740328242968,-500.0,0.0001818,2]
[354173656,1740328242977,-500.0,0.0001818,2]
[354173657,1740328242987,-500.0,0.0001818,2]
[354173658,1740328242997,-500.0,0.0001818,2]
[354173659,1740328243006,-500.0,0.0001818,2]
[354173661,1740328243016,-500.0,0.0001818,2]
[354173663,1740328243026,-500.0,0.0001818,2]
[354173665,1740328243035,-500.0,0.0001818,2]
[354173667,1740328243044,-500.0,0.0001818,2]
[354173669,1740328243057,-500.0,0.0001818,2]
[354173671,1740328243067,-500.0,0.0001818,2]
[354173673,1740328243076,-500.0,0.0001818,2]
[354173675,1740328243086,-500.0,0.0001818,2]
[354173677,1740328243097,-500.0,0.0001818,2]
[354173681,1740328243107,-508.21431392,0.0001818,2]
[354173684,1740328243116,-500.0,0.0001818,2]
[354173688,1740328243125,-500.0,0.0001818,2]
[354173692,1740328243137,-500.0,0.0001818,2]
[354173696,1740328243147,-500.0,0.0001818,2]
[354173699,1740328243157,-500.0,0.0001818,2]
[354173703,1740328243166,-500.0,0.0001818,2]
[354173707,1740328243176,-500.0,0.0001818,2]
[354173710,1740328243185,-500.0,0.0001818,2]
[354173713,1740328243195,-500.0,0.0001818,2]
[354173716,1740328243204,-500.0,0.0001818,2]
[354173719,1740328243214,-500.0,0.0001818,2]
[354173721,1740328243223,-500.0,0.0001818,2]
[354173724,1740328243233,-500.0,0.0001818,2]
[354173726,1740328243243,-500.0,0.0001818,2]
[354173728,1740328243252,-500.0,0.0001818,2]
[354173730,1740328243262,-500.0,0.0001818,2]
[354173732,1740328243271,-500.0,0.0001818,2]
[354173734,1740328243280,-500.0,0.0001818,2]
[354173736,1740328243300,-500.0,0.0001818,2]
[354173738,1740328243325,-500.0,0.0001818,2]
[354173740,1740328243347,-500.0,0.0001818,2]
[354173742,1740328243369,-543.12,0.0001818,2]
[354173743,1740328243396,-500.0,0.0001818,2]
[354173744,1740328243426,-500.0,0.0001818,2]
[354173745,1740328243454,-500.0,0.0001818,2]
[354173746,1740328243492,-500.0,0.0001818,2]
[354173747,1740328243540,-500.0,0.0001818,2]
[354173748,1740328243571,-500.0,0.0001818,2]
[354173749,1740328243580,-500.0,0.0001818,2]
[354173750,1740328243590,-500.0,0.0001818,2]
[354173751,1740328243601,-500.0,0.0001818,2]
[354173752,1740328243611,-500.0,0.0001818,2]
[354173753,1740328243621,-500.0,0.0001818,2]
[354173754,1740328243631,-5667.1342213,0.00018181,2]
[354173756,1740328243640,-150.0,0.00018185,2]
[354173757,1740328243650,-150.0,0.00018185,2]
[354173758,1740328243659,-168.37892299,0.00018198,2]
[354173759,1740328243668,-247.14410513,0.00018198,2]
[354173761,1740328243678,-8429.0201,0.00018199,2]
[354173762,1740328243687,-2185.5286,0.00018199,2]
[354173763,1740328243696,-613.4494,0.00018199,2]
[354173764,1740328243705,-1000.0,0.00018199,2]
[354173768,1740328243816,-1942.7919193,0.00018201,2]
[354173769,1740328243826,-500.0,0.00018203,2]
[354173770,1740328243836,-312.75525845,0.00018208,2]
[354173771,1740328243845,-5667.1342213,0.00018218,2]
[354173772,1740328243855,-172.52442918,0.00018219,2]
[354173773,1740328243864,-1942.7919193,0.00018229,2]
[354173774,1740328243873,-150.0,0.0001823,2]
[354173775,1740328243882,-150.0,0.00018235,2]
[354173776,1740328243891,-500.0,0.00018244,2]
[354173777,1740328243901,-500.0,0.00018244,2]
[354173778,1740328243910,-500.0,0.00018244,2]
[354173779,1740328243920,-500.0,0.00018244,2]
[354173780,1740328243929,-500.0,0.00018244,2]
[354173781,1740328243939,-500.0,0.00018244,2]
[354173782,1740328243948,-500.0,0.00018244,2]
[354173783,1740328243958,-501.83936741,0.00018244,2]
[354173784,1740328243967,-500.0,0.00018244,2]
[354173785,1740328243976,-500.0,0.00018244,2]
[354173786,1740328243986,-500.0,0.00018244,2]
[354173787,1740328243995,-500.0,0.00018244,2]
[354173788,1740328244005,-500.0,0.00018244,2]
[354173789,1740328244014,-500.7423518,0.00018244,2]
[354173790,1740328244023,-500.0,0.00018244,2]
[354173791,1740328244032,-500.59597007,0.00018244,2]
[354173792,1740328244041,-500.0,0.00018244,2]
[354173793,1740328244053,-500.0,0.00018244,2]
[354173794,1740328244064,-500.0,0.00018244,2]
[354173795,1740328244074,-500.0,0.00018244,2]
[354173796,1740328244084,-500.0,0.00018244,2]
[354173797,1740328244095,-500.0,0.00018244,2]
[354173798,1740328244104,-500.0,0.00018244,2]
[354173799,1740328244114,-502.28373685,0.00018244,2]
[354173800,1740328244123,-500.0,0.00018244,2]
[354173801,1740328244134,-500.0,0.00018244,2]
[354173802,1740328244143,-500.0,0.00018244,2]
[354173803,1740328244152,-500.0,0.00018244,2]
[354173804,1740328244161,-500.0,0.00018244,2]
[354173805,1740328244170,-500.0,0.00018244,2]
[354173806,1740328244180,-500.0,0.00018244,2]
[354173807,1740328244189,-500.0,0.00018244,2]
[354173808,1740328244198,-500.0,0.00018244,2]
[354173809,1740328244207,-500.0,0.00018244,2]
[354173810,1740328244217,-500.0,0.00018244,2]
[354173811,1740328244227,-500.0,0.00018244,2]
[354173812,1740328244236,-500.0,0.00018244,2]
[354173813,1740328244245,-500.0,0.00018244,2]
[354173814,1740328244255,-500.0,0.00018244,2]
[354173815,1740328244264,-500.0,0.00018244,2]
[354173816,1740328244274,-500.0,0.00018244,2]
[354173817,1740328244284,-500.0,0.00018244,2]
[354173818,1740328244293,-500.0,0.00018244,2]
[354173819,1740328244302,-500.0,0.00018244,2]
[354173820,1740328244312,-500.0,0.00018244,2]
[354173821,1740328244321,-500.0,0.00018244,2]
[354173822,1740328244331,-500.0,0.00018244,2]
[354173823,1740328244340,-500.0,0.00018244,2]
[354173824,1740328244349,-545.32747889,0.00018244,2]
[354173825,1740328244359,-500.0,0.00018244,2]
[354173826,1740328244368,-500.0,0.00018244,2]
[354173827,1740328244378,-500.0,0.00018244,2]
[354173828,1740328244388,-500.0,0.00018244,2]